[Event "Live Chess"]
[Site "Chess.com"]
[Date "2023.05.21"]
[Round "-"]
[White "VovaOvchar1990"]
[Black "Cimon"]
[Result "0-1"]
[WhiteElo "1222"]
[BlackElo "1834"]
[TimeControl "300"]
[EndTime "2:47:48 PDT"]
[Termination "Cimon won on time"]

1. e4 {[%clk 0:04:58.6]} 1... d6 {[%clk 0:04:57.7]} 2. Bc4 {[%clk 0:04:57.5]}
2... Nf6 {[%clk 0:04:55.2]} 3. Nc3 {[%clk 0:04:55]} 3... g6 {[%clk 0:04:54]} 4.
d4 {[%clk 0:04:53.8]} 4... Bg7 {[%clk 0:04:51.6]} 5. Nf3 {[%clk 0:04:52.5]} 5...
O-O {[%clk 0:04:50]} 6. O-O {[%clk 0:04:51.2]} 6... c6 {[%clk 0:04:48.5]} 7. d5
{[%clk 0:04:48.5]} 7... b5 {[%clk 0:04:43.5]} 8. Bb3 {[%clk 0:04:43.3]} 8... a6
{[%clk 0:04:41.9]} 9. dxc6 {[%clk 0:04:36]} 9... Nxc6 {[%clk 0:04:40]} 10. Bd5
{[%clk 0:04:35]} 10... Bd7 {[%clk 0:04:34.9]} 11. Bg5 {[%clk 0:04:24.8]} 11...
Rc8 {[%clk 0:04:32.4]} 12. Bxf6 {[%clk 0:04:19.5]} 12... Bxf6 {[%clk 0:04:30.3]}
13. Re1 {[%clk 0:04:14.3]} 13... Ne5 {[%clk 0:04:17.9]} 14. Nxe5 {[%clk
0:04:10.9]} 14... Bxe5 {[%clk 0:04:16.1]} 15. Qf3 {[%clk 0:04:07.5]} 15... Rc7
{[%clk 0:03:38.9]} 16. Rac1 {[%clk 0:03:56.9]} 16... e6 {[%clk 0:03:33.8]} 17.
Bb3 {[%clk 0:03:53.4]} 17... b4 {[%clk 0:03:18.9]} 18. Ne2 {[%clk 0:03:44.7]}
18... Bxb2 {[%clk 0:03:17.4]} 19. Rcd1 {[%clk 0:03:36.1]} 19... Be5 {[%clk
0:03:09.1]} 20. Ng3 {[%clk 0:03:26.8]} 20... a5 {[%clk 0:03:02.3]} 21. a4 {[%clk
0:02:43.5]} 21... Rc3 {[%clk 0:02:47.4]} 22. Qg4 {[%clk 0:02:31.8]} 22... Bxg3
{[%clk 0:02:35.8]} 23. hxg3 {[%clk 0:02:23.9]} 23... Qc7 {[%clk 0:02:26.3]} 24.
Qh3 {[%clk 0:02:18.3]} 24... Kg7 {[%clk 0:02:21.4]} 25. Re3 {[%clk 0:02:13.8]}
25... Rxe3 {[%clk 0:02:17.1]} 26. fxe3 {[%clk 0:02:12.6]} 26... Bc6 {[%clk
0:02:13.3]} 27. Qh4 {[%clk 0:02:04.7]} 27... Rd8 {[%clk 0:01:59.6]} 28. Kf2
{[%clk 0:02:02.6]} 28... Qd7 {[%clk 0:01:55.5]} 29. Rh1 {[%clk 0:02:00.3]} 29...
h5 {[%clk 0:01:52]} 30. g4 {[%clk 0:01:58.6]} 30... Rh8 {[%clk 0:01:45]} 31. g5
{[%clk 0:01:46.5]} 31... e5 {[%clk 0:01:34.7]} 32. Qg3 {[%clk 0:01:40]} 32...
Bxe4 {[%clk 0:01:29.7]} 33. Rh4 {[%clk 0:01:33.6]} 33... Bc6 {[%clk 0:01:19.9]}
34. e4 {[%clk 0:01:23.4]} 34... Bxa4 {[%clk 0:00:57]} 35. Qf3 {[%clk 0:01:09.3]}
35... Bxb3 {[%clk 0:00:42.8]} 36. cxb3 {[%clk 0:01:02.8]} 36... Qe6 {[%clk
0:00:40.3]} 37. g4 {[%clk 0:00:46.3]} 37... hxg4 {[%clk 0:00:23.4]} 38. Rxg4
{[%clk 0:00:33]} 38... Rh2+ {[%clk 0:00:19.4]} 39. Kg3 {[%clk 0:00:31.1]} 39...
Rc2 {[%clk 0:00:16.9]} 40. Kh4 {[%clk 0:00:17.1]} 40... Rc3 {[%clk 0:00:15.5]}
41. Qd1 {[%clk 0:00:11.3]} 41... Qe8 {[%clk 0:00:13.9]} 0-1

[Event "Live Chess"]
[Site "Chess.com"]
[Date "2023.05.21"]
[Round "-"]
[White "ItsNot_Jasper"]
[Black "Purple1szed"]
[Result "0-1"]
[WhiteElo "1347"]
[BlackElo "1824"]
[TimeControl "300"]
[EndTime "2:47:53 PDT"]
[Termination "Purple1szed won by checkmate"]

1. d4 {[%clk 0:04:57.8]} 1... Nf6 {[%clk 0:04:59]} 2. c4 {[%clk 0:04:56.7]} 2...
e6 {[%clk 0:04:57.9]} 3. Nf3 {[%clk 0:04:54.4]} 3... b6 {[%clk 0:04:56.9]} 4. g3
{[%clk 0:04:53.1]} 4... Bb7 {[%clk 0:04:56.3]} 5. Bg2 {[%clk 0:04:52.4]} 5... d5
{[%clk 0:04:55.9]} 6. O-O {[%clk 0:04:51.4]} 6... Be7 {[%clk 0:04:54.5]} 7. cxd5
{[%clk 0:04:49.1]} 7... Bxd5 {[%clk 0:04:51.8]} 8. Nc3 {[%clk 0:04:48.3]} 8...
Bb7 {[%clk 0:04:50.3]} 9. Re1 {[%clk 0:04:47]} 9... Nc6 {[%clk 0:04:47.5]} 10.
Bg5 {[%clk 0:04:42.9]} 10... h6 {[%clk 0:04:46.4]} 11. Bf4 {[%clk 0:04:38.2]}
11... O-O {[%clk 0:04:43.3]} 12. e4 {[%clk 0:04:32.3]} 12... Bb4 {[%clk
0:04:34.9]} 13. a3 {[%clk 0:04:28.5]} 13... Bxc3 {[%clk 0:04:33.5]} 14. bxc3
{[%clk 0:04:28.4]} 14... Qd7 {[%clk 0:04:30.3]} 15. Nd2 {[%clk 0:04:16.6]} 15...
Rad8 {[%clk 0:04:24.5]} 16. Rb1 {[%clk 0:04:11.2]} 16... Rfe8 {[%clk 0:04:18.6]}
17. Nb3 {[%clk 0:04:08.9]} 17... e5 {[%clk 0:04:16.7]} 18. dxe5 {[%clk
0:03:57.1]} 18... Nxe5 {[%clk 0:04:16.6]} 19. Qxd7 {[%clk 0:03:49.2]} 19... Rxd7
{[%clk 0:04:14.1]} 20. Bxe5 {[%clk 0:03:46.4]} 20... Rxe5 {[%clk 0:04:10.7]} 21.
f4 {[%clk 0:03:46]} 21... Re8 {[%clk 0:04:06.4]} 22. Nc5 {[%clk 0:03:40.3]}
22... Ba6 {[%clk 0:04:00.7]} 23. Nxa6 {[%clk 0:03:24]} 23... Rd3 {[%clk
0:03:55.1]} 24. e5 {[%clk 0:03:20]} 24... Ng4 {[%clk 0:03:47.9]} 25. Nb4 {[%clk
0:02:54.3]} 25... Rxc3 {[%clk 0:03:43]} 26. Rec1 {[%clk 0:02:53.3]} 26... Rxa3
{[%clk 0:03:29.2]} 27. Rxc7 {[%clk 0:02:51.9]} 27... Rd8 {[%clk 0:03:22.4]} 28.
Nc6 {[%clk 0:02:38.4]} 28... Rd2 {[%clk 0:03:19.4]} 29. Be4 {[%clk 0:02:25.5]}
29... g6 {[%clk 0:02:58.1]} 30. Rc8+ {[%clk 0:02:19.9]} 30... Kg7 {[%clk
0:02:54.8]} 31. h3 {[%clk 0:02:08.4]} 31... Nf2 {[%clk 0:02:48]} 32. Bg2 {[%clk
0:01:51.4]} 32... Raa2 {[%clk 0:02:46.9]} 33. Ne7 {[%clk 0:01:31.6]} 33... Nd1
{[%clk 0:02:23.2]} 34. Bf3 {[%clk 0:00:56.5]} 34... Nf2 {[%clk 0:02:12.4]} 35.
Bb7 {[%clk 0:00:35.2]} 35... Nxh3+ {[%clk 0:02:10.7]} 36. Kf1 {[%clk 0:00:34.5]}
36... Rf2+ {[%clk 0:02:07.8]} 37. Ke1 {[%clk 0:00:33.9]} 37... Rae2+ {[%clk
0:01:56.7]} 38. Kd1 {[%clk 0:00:32.9]} 38... Ra2 {[%clk 0:01:53.5]} 39. Rg8+
{[%clk 0:00:27.4]} 39... Kh7 {[%clk 0:01:52.3]} 40. Rf8 {[%clk 0:00:24.8]} 40...
Rf1# {[%clk 0:01:51.3]} 0-1

[Event "Live Chess"]
[Site "Chess.com"]
[Date "2023.05.21"]
[Round "-"]
[White "Greenbecker"]
[Black "martynstanley"]
[Result "1-0"]
[WhiteElo "1645"]
[BlackElo "1013"]
[TimeControl "300"]
[EndTime "2:47:54 PDT"]
[Termination "Greenbecker won by checkmate"]

1. e4 {[%clk 0:04:57.8]} 1... e5 {[%clk 0:04:58.7]} 2. Nf3 {[%clk 0:04:57]} 2...
f6 {[%clk 0:04:55.5]} 3. d4 {[%clk 0:04:55.3]} 3... exd4 {[%clk 0:04:53.9]} 4.
Nxd4 {[%clk 0:04:54.3]} 4... Bb4+ {[%clk 0:04:51.7]} 5. c3 {[%clk 0:04:52.8]}
5... Bc5 {[%clk 0:04:50.8]} 6. Bc4 {[%clk 0:04:50.8]} 6... Bxd4 {[%clk
0:04:49.4]} 7. cxd4 {[%clk 0:04:48.9]} 7... Nc6 {[%clk 0:04:47.4]} 8. Be3 {[%clk
0:04:45.5]} 8... d6 {[%clk 0:04:45.4]} 9. O-O {[%clk 0:04:43]} 9... Nge7 {[%clk
0:04:43.5]} 10. Nc3 {[%clk 0:04:39.1]} 10... d5 {[%clk 0:04:42.7]} 11. exd5
{[%clk 0:04:36.5]} 11... Nxd5 {[%clk 0:04:41.6]} 12. Bxd5 {[%clk 0:04:34.7]}
12... Bd7 {[%clk 0:04:37.2]} 13. Re1 {[%clk 0:04:31.6]} 13... Kf8 {[%clk
0:04:29.6]} 14. Bxc6 {[%clk 0:04:27.2]} 14... bxc6 {[%clk 0:04:28.3]} 15. Ne4
{[%clk 0:04:22.9]} 15... h6 {[%clk 0:04:26.3]} 16. Nc5 {[%clk 0:04:20.4]} 16...
Bc8 {[%clk 0:04:24.5]} 17. Bf4 {[%clk 0:04:15.3]} 17... Bb7 {[%clk 0:04:22.3]}
18. Ne6+ {[%clk 0:04:13.6]} 18... Kf7 {[%clk 0:04:19.3]} 19. Nxd8+ {[%clk
0:04:11.9]} 19... Raxd8 {[%clk 0:04:17.6]} 20. Qb3+ {[%clk 0:04:10.7]} 20... Kg6
{[%clk 0:04:15.9]} 21. Qxb7 {[%clk 0:04:09.7]} 21... f5 {[%clk 0:04:14]} 22.
Qxc7 {[%clk 0:04:04]} 22... Rxd4 {[%clk 0:04:12.6]} 23. Re6+ {[%clk 0:03:58.9]}
23... Kh7 {[%clk 0:04:11.2]} 24. Be5 {[%clk 0:03:52.6]} 24... Rg8 {[%clk
0:04:09.4]} 25. Re7 {[%clk 0:03:51]} 25... Rg4 {[%clk 0:04:07.9]} 26. g3 {[%clk
0:03:40.3]} 26... a5 {[%clk 0:04:06.1]} 27. h3 {[%clk 0:03:35]} 27... Rg5 {[%clk
0:04:03]} 28. h4 {[%clk 0:03:30.9]} 28... Rg6 {[%clk 0:04:01.9]} 29. Rd1 {[%clk
0:03:26.8]} 29... h5 {[%clk 0:04:01.1]} 30. Rdd7 {[%clk 0:03:25.6]} 30... f4
{[%clk 0:03:59.4]} 31. Rxg7+ {[%clk 0:03:24.2]} 31... R8xg7 {[%clk 0:03:57.9]}
32. Rxg7+ {[%clk 0:03:23]} 32... Rxg7 {[%clk 0:03:57.1]} 33. Qxg7# {[%clk
0:03:22.2]} 1-0

[Event "Live Chess"]
[Site "Chess.com"]
[Date "2023.05.21"]
[Round "-"]
[White "Tushinskiy"]
[Black "hturner40"]
[Result "1-0"]
[WhiteElo "2144"]
[BlackElo "1815"]
[TimeControl "300"]
[EndTime "2:48:02 PDT"]
[Termination "Tushinskiy won by resignation"]

1. d4 {[%clk 0:04:56.7]} 1... Nf6 {[%clk 0:04:57.5]} 2. c3 {[%clk 0:04:56.6]}
2... d5 {[%clk 0:04:51.2]} 3. Nf3 {[%clk 0:04:56.5]} 3... g6 {[%clk 0:04:49.9]}
4. Bf4 {[%clk 0:04:55.8]} 4... Bg7 {[%clk 0:04:48.7]} 5. Nbd2 {[%clk 0:04:54.4]}
5... O-O {[%clk 0:04:47]} 6. e3 {[%clk 0:04:53.2]} 6... b6 {[%clk 0:04:45]} 7.
Bd3 {[%clk 0:04:52.2]} 7... Bb7 {[%clk 0:04:42]} 8. Qe2 {[%clk 0:04:50.8]} 8...
c5 {[%clk 0:04:39.1]} 9. Bg3 {[%clk 0:04:42.3]} 9... Re8 {[%clk 0:04:25.7]} 10.
Ne5 {[%clk 0:04:37.7]} 10... Nc6 {[%clk 0:04:21.2]} 11. f4 {[%clk 0:04:24]}
11... Nd7 {[%clk 0:04:14.7]} 12. O-O {[%clk 0:04:17.8]} 12... f6 {[%clk
0:04:13.6]} 13. Nxd7 {[%clk 0:04:11.8]} 13... Qxd7 {[%clk 0:04:11.9]} 14. f5
{[%clk 0:04:10.8]} 14... e5 {[%clk 0:03:58.2]} 15. dxc5 {[%clk 0:04:01.7]} 15...
e4 {[%clk 0:03:50.2]} 16. Bc2 {[%clk 0:03:58.9]} 16... bxc5 {[%clk 0:03:39.1]}
17. fxg6 {[%clk 0:03:56.9]} 17... hxg6 {[%clk 0:03:37.7]} 18. Rad1 {[%clk
0:03:54.9]} 18... a5 {[%clk 0:02:39.7]} 19. Nxe4 {[%clk 0:03:24.1]} 19... Ba6
{[%clk 0:02:10.2]} 20. c4 {[%clk 0:03:17.3]} 20... Qe7 {[%clk 0:01:19.3]} 21.
Rxd5 {[%clk 0:03:04.1]} 21... f5 {[%clk 0:01:04.1]} 22. Nxc5 {[%clk 0:02:59.2]}
22... Qxe3+ {[%clk 0:00:56.8]} 23. Qxe3 {[%clk 0:02:57]} 23... Rxe3 {[%clk
0:00:53.6]} 24. Nxa6 {[%clk 0:02:55.5]} 24... Rxa6 {[%clk 0:00:47.2]} 25. b3
{[%clk 0:02:53.7]} 25... Nb4 {[%clk 0:00:44.7]} 26. Bb1 {[%clk 0:02:52.5]} 26...
Nxd5 {[%clk 0:00:40.5]} 27. cxd5 {[%clk 0:02:51]} 27... Re2 {[%clk 0:00:35.4]}
28. Bd3 {[%clk 0:02:49.4]} 28... Bd4+ {[%clk 0:00:25.8]} 29. Kh1 {[%clk
0:02:48]} 1-0

[Event "Live Chess"]
[Site "Chess.com"]
[Date "2023.05.21"]
[Round "-"]
[White "Tech_Titan"]
[Black "LiamClery2020"]
[Result "0-1"]
[WhiteElo "1113"]
[BlackElo "1989"]
[TimeControl "300"]
[EndTime "2:48:04 PDT"]
[Termination "LiamClery2020 won by resignation"]

1. c4 {[%clk 0:04:57.6]} 1... Nf6 {[%clk 0:04:59.9]} 2. Nc3 {[%clk 0:04:56.1]}
2... e5 {[%clk 0:04:58.7]} 3. e4 {[%clk 0:04:52.7]} 3... Nc6 {[%clk 0:04:57.8]}
4. Nf3 {[%clk 0:04:49.9]} 4... Bb4 {[%clk 0:04:56.8]} 5. a3 {[%clk 0:04:46.6]}
5... Bxc3 {[%clk 0:04:56]} 6. bxc3 {[%clk 0:04:45.9]} 6... Nxe4 {[%clk
0:04:55.9]} 7. d4 {[%clk 0:04:41.9]} 7... Nxc3 {[%clk 0:04:53.6]} 8. d5 {[%clk
0:04:38.4]} 8... Nxd1 {[%clk 0:04:51]} 9. Be2 {[%clk 0:04:30.4]} 9... Nc3 {[%clk
0:04:49.8]} 10. Bd2 {[%clk 0:04:27.3]} 10... Nxe2 {[%clk 0:04:49]} 11. Kxe2
{[%clk 0:04:26]} 11... Nd4+ {[%clk 0:04:48.3]} 12. Kd3 {[%clk 0:04:24]} 12... d6
{[%clk 0:04:46]} 0-1

[Event "Live Chess"]
[Site "Chess.com"]
[Date "2023.05.21"]
[Round "-"]
[White "Chris_pea"]
[Black "JamesWallman"]
[Result "0-1"]
[WhiteElo "598"]
[BlackElo "782"]
[TimeControl "300"]
[EndTime "2:48:08 PDT"]
[Termination "JamesWallman won by resignation"]

1. e4 {[%clk 0:04:51.5]} 1... e5 {[%clk 0:04:54.1]} 2. Nc3 {[%clk 0:04:49.5]}
2... Nf6 {[%clk 0:04:50.2]} 3. f4 {[%clk 0:04:48.1]} 3... d6 {[%clk 0:04:45.3]}
4. Nf3 {[%clk 0:04:44]} 4... Nc6 {[%clk 0:04:40.9]} 5. Bb5 {[%clk 0:04:37.5]}
5... Bg4 {[%clk 0:04:32.5]} 6. d3 {[%clk 0:04:31.6]} 6... Be7 {[%clk 0:04:27]}
7. O-O {[%clk 0:04:29.3]} 7... O-O {[%clk 0:04:24.4]} 8. Qe1 {[%clk 0:04:11.1]}
8... Nd4 {[%clk 0:04:20]} 9. Nxd4 {[%clk 0:03:56.3]} 9... exd4 {[%clk
0:04:08.2]} 10. Nd5 {[%clk 0:03:50.2]} 10... Nxd5 {[%clk 0:04:04.4]} 11. exd5
{[%clk 0:03:46.1]} 11... a6 {[%clk 0:03:59.9]} 12. Bc4 {[%clk 0:03:33.5]} 12...
b5 {[%clk 0:03:56.9]} 13. Bb3 {[%clk 0:03:31.9]} 13... f5 {[%clk 0:03:43.9]} 14.
h3 {[%clk 0:03:19.1]} 14... Bh5 {[%clk 0:03:40.8]} 15. Qh4 {[%clk 0:02:39.8]}
15... Bxh4 {[%clk 0:03:35.4]} 16. g3 {[%clk 0:02:31.7]} 16... Be7 {[%clk
0:03:30.9]} 17. Bd2 {[%clk 0:02:29.8]} 17... Re8 {[%clk 0:03:25]} 18. Rae1
{[%clk 0:02:24.4]} 18... Qd7 {[%clk 0:03:10.9]} 19. c3 {[%clk 0:02:15.5]} 19...
Bf7 {[%clk 0:03:06.7]} 20. c4 {[%clk 0:01:56.7]} 20... bxc4 {[%clk 0:03:02.4]}
21. dxc4 {[%clk 0:01:54.5]} 21... Bf6 {[%clk 0:02:51.6]} 22. Bc2 {[%clk
0:01:32.5]} 22... Rxe1 {[%clk 0:02:46.8]} 23. Rxe1 {[%clk 0:01:30.4]} 23... Re8
{[%clk 0:02:42.6]} 24. Rxe8+ {[%clk 0:01:08.4]} 24... Qxe8 {[%clk 0:02:39]} 25.
Bd1 {[%clk 0:01:03]} 25... Qb8 {[%clk 0:02:24.7]} 26. b3 {[%clk 0:00:59.7]}
26... Qb6 {[%clk 0:02:18.8]} 27. Be1 {[%clk 0:00:43.5]} 27... d3+ {[%clk
0:02:14.2]} 28. Kg2 {[%clk 0:00:29.4]} 28... Qe3 {[%clk 0:02:06.2]} 29. Bf2
{[%clk 0:00:19.4]} 29... Qd2 {[%clk 0:02:01.6]} 30. Bf3 {[%clk 0:00:12.7]} 30...
Qxa2 {[%clk 0:01:54.3]} 0-1

[Event "Live Chess"]
[Site "Chess.com"]
[Date "2023.05.21"]
[Round "-"]
[White "TKDRyan"]
[Black "DoYouLikeCurry"]
[Result "0-1"]
[WhiteElo "1132"]
[BlackElo "1394"]
[TimeControl "300"]
[EndTime "2:48:24 PDT"]
[Termination "DoYouLikeCurry won by resignation"]

1. e4 {[%clk 0:04:55.3]} 1... c6 {[%clk 0:04:58.5]} 2. d4 {[%clk 0:04:49]} 2...
d5 {[%clk 0:04:57]} 3. e5 {[%clk 0:04:47.1]} 3... Bf5 {[%clk 0:04:54.1]} 4. Bd3
{[%clk 0:04:41.6]} 4... Bxd3 {[%clk 0:04:48.9]} 5. Qxd3 {[%clk 0:04:37.1]} 5...
e6 {[%clk 0:04:45]} 6. Nf3 {[%clk 0:04:35.1]} 6... Qb6 {[%clk 0:04:39.2]} 7. c3
{[%clk 0:04:26.8]} 7... c5 {[%clk 0:04:34.2]} 8. Na3 {[%clk 0:04:17.1]} 8...
cxd4 {[%clk 0:04:28.1]} 9. Nxd4 {[%clk 0:04:06.4]} 9... Bc5 {[%clk 0:04:19.2]}
10. O-O {[%clk 0:04:02.3]} 10... Nc6 {[%clk 0:04:15.6]} 11. Nab5 {[%clk
0:03:50.8]} 11... Nxe5 {[%clk 0:04:07.7]} 12. Qg3 {[%clk 0:03:34.8]} 12... Bxd4
{[%clk 0:04:04.3]} 13. cxd4 {[%clk 0:03:30.5]} 13... Qxb5 {[%clk 0:03:59.2]} 14.
Qxe5 {[%clk 0:03:27.6]} 14... Nf6 {[%clk 0:03:50.5]} 15. b3 {[%clk 0:03:20.8]}
15... O-O {[%clk 0:03:45.2]} 16. Bg5 {[%clk 0:03:13.9]} 16... Nd7 {[%clk
0:03:39.6]} 17. Qg3 {[%clk 0:03:10.9]} 17... Rac8 {[%clk 0:03:34.9]} 18. Bh6
{[%clk 0:03:09.3]} 18... g6 {[%clk 0:03:31.7]} 19. Rac1 {[%clk 0:02:48.9]} 19...
Rfd8 {[%clk 0:03:24.8]} 20. Rc5 {[%clk 0:02:30.4]} 20... Nxc5 {[%clk 0:03:19.6]}
21. Qe5 {[%clk 0:02:29]} 21... f6 {[%clk 0:03:09.6]} 22. Qxf6 {[%clk 0:02:25.4]}
22... Rd7 {[%clk 0:03:09.2]} 23. dxc5 {[%clk 0:02:23.3]} 23... Qxc5 {[%clk
0:02:55.8]} 24. Qxe6+ {[%clk 0:02:19.3]} 24... Rf7 {[%clk 0:02:54.6]} 25. Re1
{[%clk 0:02:16.8]} 25... Qxf2+ {[%clk 0:02:44.4]} 26. Kh1 {[%clk 0:02:06.3]}
26... Rc2 {[%clk 0:02:33.5]} 27. Qe8+ {[%clk 0:01:32.7]} 27... Rf8 {[%clk
0:02:28]} 28. Qxf8+ {[%clk 0:01:30.5]} 28... Qxf8 {[%clk 0:02:23.5]} 29. Bxf8
{[%clk 0:01:28.3]} 29... Kxf8 {[%clk 0:02:23.4]} 30. Rf1+ {[%clk 0:01:26.4]}
30... Ke7 {[%clk 0:02:20.1]} 31. a4 {[%clk 0:01:24.4]} 31... Rb2 {[%clk
0:02:16.5]} 32. Rf3 {[%clk 0:01:23.2]} 32... Rb1+ {[%clk 0:02:11.9]} 0-1

[Event "Live Chess"]
[Site "Chess.com"]
[Date "2023.05.21"]
[Round "-"]
[White "WelshTiger"]
[Black "domrobson"]
[Result "1-0"]
[WhiteElo "2340"]
[BlackElo "1696"]
[TimeControl "300"]
[EndTime "2:48:51 PDT"]
[Termination "WelshTiger won by resignation"]

1. e4 {[%clk 0:04:52.8]} 1... e5 {[%clk 0:04:59.1]} 2. Nf3 {[%clk 0:04:50.7]}
2... Nc6 {[%clk 0:04:58.4]} 3. d4 {[%clk 0:04:50]} 3... exd4 {[%clk 0:04:57.3]}
4. Bc4 {[%clk 0:04:49.3]} 4... Nf6 {[%clk 0:04:56.3]} 5. e5 {[%clk 0:04:48.1]}
5... d5 {[%clk 0:04:53.6]} 6. Bb5 {[%clk 0:04:47.3]} 6... Ne4 {[%clk 0:04:52.7]}
7. Nxd4 {[%clk 0:04:46.5]} 7... Bd7 {[%clk 0:04:51]} 8. Bxc6 {[%clk 0:04:45.4]}
8... bxc6 {[%clk 0:04:49.6]} 9. O-O {[%clk 0:04:45]} 9... Be7 {[%clk 0:04:48.2]}
10. f3 {[%clk 0:04:44]} 10... Nc5 {[%clk 0:04:46.6]} 11. f4 {[%clk 0:04:39.4]}
11... Ne4 {[%clk 0:04:45.4]} 12. Nc3 {[%clk 0:04:32.4]} 12... Bc5 {[%clk
0:04:37.4]} 13. Be3 {[%clk 0:04:30.6]} 13... Nxc3 {[%clk 0:04:36.1]} 14. bxc3
{[%clk 0:04:29.8]} 14... O-O {[%clk 0:04:34.9]} 15. f5 {[%clk 0:04:28.3]} 15...
Bxd4 {[%clk 0:04:32.4]} 16. cxd4 {[%clk 0:04:22.6]} 16... Qc8 {[%clk 0:04:29.6]}
17. f6 {[%clk 0:04:21.4]} 17... Bf5 {[%clk 0:04:25.9]} 18. fxg7 {[%clk
0:04:13.1]} 18... Kxg7 {[%clk 0:04:24.3]} 19. Qf3 {[%clk 0:04:10.2]} 19... Bg6
{[%clk 0:04:20.7]} 20. Qf6+ {[%clk 0:04:09.3]} 20... Kg8 {[%clk 0:04:19.7]} 21.
Bh6 {[%clk 0:04:08.9]} 1-0

[Event "Live Chess"]
[Site "Chess.com"]
[Date "2023.05.21"]
[Round "-"]
[White "fgreen"]
[Black "elephantgerrald"]
[Result "1-0"]
[WhiteElo "1372"]
[BlackElo "686"]
[TimeControl "300"]
[EndTime "2:48:59 PDT"]
[Termination "fgreen won by checkmate"]

1. d4 {[%clk 0:04:57.8]} 1... d5 {[%clk 0:04:58.9]} 2. Nf3 {[%clk 0:04:54.9]}
2... Nc6 {[%clk 0:04:58]} 3. Bf4 {[%clk 0:04:51.8]} 3... f6 {[%clk 0:04:55]} 4.
e3 {[%clk 0:04:45.6]} 4... Bf5 {[%clk 0:04:52.5]} 5. c4 {[%clk 0:04:41.1]} 5...
dxc4 {[%clk 0:04:46.6]} 6. Bxc4 {[%clk 0:04:38.2]} 6... Qd7 {[%clk 0:04:39.7]}
7. O-O {[%clk 0:04:30.4]} 7... Bxb1 {[%clk 0:04:38.1]} 8. Rxb1 {[%clk
0:04:26.1]} 8... O-O-O {[%clk 0:04:35.7]} 9. Qb3 {[%clk 0:04:13.3]} 9... e6
{[%clk 0:04:30.2]} 10. Bxe6 {[%clk 0:04:09.7]} 10... Qxe6 {[%clk 0:04:26.1]} 11.
Qxe6+ {[%clk 0:04:07.8]} 11... Kb8 {[%clk 0:04:24.5]} 12. Rfc1 {[%clk
0:03:57.8]} 12... Nge7 {[%clk 0:04:22.2]} 13. Qb3 {[%clk 0:03:51.4]} 13... g6
{[%clk 0:04:16.3]} 14. a4 {[%clk 0:03:45]} 14... a5 {[%clk 0:04:12.3]} 15. Rc5
{[%clk 0:03:39.6]} 15... Nf5 {[%clk 0:03:46.6]} 16. Rxc6 {[%clk 0:03:33.8]}
16... Bb4 {[%clk 0:03:34.7]} 17. Rxc7 {[%clk 0:03:25.8]} 17... Ka7 {[%clk
0:03:32]} 18. Qc4 {[%clk 0:03:17.4]} 18... Rb8 {[%clk 0:03:19.8]} 19. d5 {[%clk
0:03:10.7]} 19... Bd6 {[%clk 0:03:16.1]} 20. Bxd6 {[%clk 0:03:05.7]} 20... Nxd6
{[%clk 0:03:05.7]} 21. Qc5+ {[%clk 0:03:03.5]} 21... Ka8 {[%clk 0:02:58.7]} 22.
Qxa5# {[%clk 0:03:00.4]} 1-0